bitfinex/quotes_BTCUSD_20250922
["timestamp","ask_amount","ask_price","bid_price","bid_amount"]
[1758532446898,1.71430908,112720.0,112710.0,0.0263806]
[1758532447119,1.73866968,112720.0,112710.0,0.0290006]
[1758532448289,1.73866968,112720.0,112710.0,0.0263806]
[1758532448466,1.76784968,112720.0,112710.0,0.0293806]
[1758532448858,1.74065968,112720.0,112710.0,0.0363806]
[1758532450194,1.74065968,112720.0,112710.0,0.0123606]
[1758532450356,1.76663968,112720.0,112710.0,0.0335406]
[1758532450553,1.74729924,112720.0,112710.0,0.0335406]
[1758532450770,2.08729924,112720.0,112710.0,0.0335406]
[1758532450975,2.0789815,112720.0,112710.0,0.0335406]
[1758532451384,2.0559515,112720.0,112710.0,0.0335406]
[1758532451598,2.0789815,112720.0,112710.0,0.0335406]
[1758532451804,2.0789815,112720.0,112710.0,0.0355006]
[1758532452005,2.0559515,112720.0,112710.0,0.0355006]
[1758532452204,2.0530015,112720.0,112710.0,0.0355006]
[1758532454039,1.9569615,112720.0,112710.0,0.0355006]
[1758532454241,2.4368015,112720.0,112710.0,0.0355006]
[1758532455258,2.4627815,112720.0,112710.0,0.0355006]
[1758532455379,2.4627815,112720.0,112710.0,0.0335406]
[1758532455583,2.4627815,112720.0,112710.0,0.0103406]
[1758532456380,2.4929334,112720.0,112710.0,0.0103406]
[1758532456588,3.60735291,112720.0,112710.0,0.0103406]
[1758532456786,2.4929334,112720.0,112710.0,0.0103406]
[1758532457869,2.50124644,112720.0,112710.0,0.0103406]
[1758532458690,2.4929334,112720.0,112710.0,0.0103406]
[1758532459095,3.60735291,112720.0,112710.0,0.0103406]
[1758532460686,2.36978887,112720.0,112710.0,0.0103406]
[1758532462986,1.61034887,112720.0,112710.0,0.0103406]
[1758532463189,2.36986887,112720.0,112710.0,0.0103406]
[1758532463426,1.61034887,112720.0,112710.0,0.0103406]
[1758532463630,2.36986887,112720.0,112710.0,0.0103406]
[1758532463846,1.61034887,112720.0,112710.0,0.0335406]
[1758532464065,2.36986887,112720.0,112710.0,0.0335406]
[1758532466842,2.36986887,112720.0,112710.0,0.0103406]
[1758532467261,2.37818109,112720.0,112710.0,0.0103406]
[1758532468802,2.43712725,112720.0,112710.0,0.0103406]
[1758532471486,2.45376017,112720.0,112710.0,0.0103406]
[1758532471931,3.24939766,112720.0,112710.0,0.0103406]
[1758532472134,1.89781958,112710.0,112700.0,0.00068]
[1758532472372,2.2217061,112710.0,112700.0,0.00068]
[1758532472575,2.2497261,112710.0,112700.0,0.00068]
[1758532472908,2.27642099,112710.0,112700.0,0.00068]
[1758532473120,1.00550601,112710.0,112700.0,0.00068]
[1758532473325,2.2606635,112710.0,112700.0,0.00068]
[1758532473750,1.5041435,112710.0,112700.0,0.00068]
[1758532473958,2.75930099,112710.0,112700.0,0.00068]
[1758532474581,2.28178099,112710.0,112700.0,0.00068]
[1758532474800,2.00178099,112710.0,112700.0,0.00068]
[1758532475055,1.94283483,112710.0,112700.0,0.00068]
[1758532475291,2.70267483,112710.0,112700.0,0.00068]
[1758532475576,2.11103734,112710.0,112700.0,0.00068]
[1758532475830,2.20699734,112710.0,112700.0,0.00068]
[1758532476425,2.27245387,112710.0,112700.0,0.00068]
[1758532476974,2.71145387,112710.0,112700.0,0.00068]
[1758532478053,1.95165387,112710.0,112700.0,0.00068]
[1758532478255,1.86327734,112710.0,112700.0,0.00273]
[1758532478442,2.61789734,112710.0,112700.0,0.02909]
[1758532478638,2.61789734,112710.0,112700.0,0.02647]
[1758532478871,1.86024734,112710.0,112700.0,0.02647]
[1758532479105,2.62000734,112710.0,112700.0,0.02647]
[1758532479271,2.60337442,112710.0,112700.0,0.02647]
[1758532480039,2.62932442,112710.0,112700.0,0.02647]
[1758532482204,2.62932442,112710.0,112700.0,0.02442]
[1758532482742,2.60640442,112710.0,112700.0,0.00068]
[1758532483042,2.62932442,112710.0,112700.0,0.00068]
[1758532485344,2.64595981,112710.0,112700.0,0.00068]
[1758532485678,2.19385799,112710.0,112700.0,0.00068]
[1758532485853,2.64611981,112710.0,112700.0,0.00068]
[1758532486487,2.67377799,112710.0,112700.0,0.00068]
[1758532486823,2.64611981,112710.0,112700.0,0.00068]
[1758532487670,3.20070346,112710.0,112700.0,0.00068]
[1758532487881,3.26455396,112710.0,112700.0,0.00068]
[1758532488094,3.31455396,112710.0,112700.0,1e-08]
[1758532488299,0.57640844,112700.0,112690.0,0.00024]
[1758532488516,1.89175162,112700.0,112690.0,0.00024]
[1758532488923,1.91977162,112700.0,112690.0,0.00024]
[1758532489099,1.92677257,112700.0,112690.0,0.00024]
[1758532489259,2.22677257,112700.0,112690.0,0.00024]
[1758532489473,2.22777257,112700.0,112690.0,0.00024]
[1758532489872,2.61369257,112700.0,112690.0,0.00024]
[1758532490081,2.70965257,112700.0,112690.0,0.00024]
[1758532490878,2.67836459,112700.0,112690.0,0.00024]
[1758532491107,1.91852459,112700.0,112690.0,0.00024]
[1758532491304,0.81747803,112690.0,112680.0,0.00700095]
[1758532491507,2.16035939,112690.0,112680.0,0.00700095]
[1758532491676,1.90853939,112690.0,112680.0,0.00700095]
[1758532491879,2.64064121,112690.0,112680.0,0.00700095]
[1758532492121,2.66438121,112690.0,112680.0,0.00700095]
[1758532492349,1.90461222,112690.0,112680.0,0.00700095]
[1758532492547,1.90461222,112690.0,112680.0,0.00900095]
[1758532492759,2.18477222,112690.0,112680.0,0.00900095]
[1758532492970,2.66469222,112690.0,112680.0,0.00900095]
[1758532493608,2.66477222,112690.0,112680.0,0.00900095]
[1758532493810,2.66485222,112690.0,112680.0,0.00900095]
[1758532494231,1.90461222,112690.0,112680.0,0.00900095]
[1758532494448,2.66485222,112690.0,112680.0,0.00900095]
[1758532494657,1.90461222,112690.0,112680.0,0.00900095]
[1758532494877,2.6747858,112690.0,112680.0,0.00900095]
[1758532497005,2.67478338,112690.0,112680.0,0.00900095]
[1758532498224,2.37474338,112690.0,112680.0,0.00900095]
[1758532498427,2.27870338,112690.0,112680.0,0.00900095]
[1758532498630,2.37470338,112690.0,112680.0,0.00900095]
[1758532498851,1.61458338,112690.0,112680.0,0.00900095]
[1758532499086,2.37470338,112690.0,112680.0,0.00900095]
[1758532499392,1.61458338,112690.0,112680.0,0.00900095]
[1758532499691,2.37474338,112690.0,112680.0,0.00900095]
[1758532500165,2.37587338,112690.0,112680.0,0.00900095]
[1758532500761,1.89587338,112690.0,112680.0,0.00900095]
[1758532500970,2.37587338,112690.0,112680.0,0.00900095]
[1758532502768,2.37583338,112690.0,112680.0,0.00900095]
[1758532503818,2.37583338,112690.0,112680.0,0.03650095]
[1758532503819,1.88115779,112690.0,112680.0,0.03650095]
[1758532503974,1.88115799,112690.0,112680.0,0.03650095]
[1758532504165,2.37679548,112690.0,112680.0,0.03650095]
[1758532504360,2.35185908,112690.0,112680.0,0.03388095]
[1758532504772,1.38551429,112690.0,112680.0,0.03388095]
[1758532505127,2.36534917,112690.0,112680.0,0.03388095]
[1758532505335,1.90939917,112690.0,112680.0,0.03388095]
[1758532505628,2.38943917,112690.0,112680.0,0.03388095]
[1758532507624,1.62931917,112690.0,112680.0,0.03388095]
[1758532507829,1.82634969,112690.0,112680.0,0.03650095]
[1758532508241,1.06598969,112690.0,112680.0,0.03650095]
[1758532508409,0.9466322,112690.0,112680.0,0.21399473]
[1758532508616,1.44226969,112690.0,112680.0,0.21399473]
[1758532508852,0.54851166,112690.0,112680.0,0.25316907]
[1758532509067,0.90563107,112690.0,112680.0,0.21399473]
[1758532509288,0.92479166,112690.0,112680.0,0.21403473]
[1758532509495,1.44226969,112690.0,112680.0,0.21403473]
[1758532509890,0.88851166,112690.0,112680.0,0.21403473]
[1758532510062,1.26487166,112690.0,112680.0,0.21403473]
[1758532510272,1.24571107,112690.0,112680.0,0.21403473]
[1758532510445,0.96535107,112690.0,112680.0,0.21403473]
[1758532510798,1.24571107,112690.0,112680.0,0.25179556]
[1758532511014,1.24571107,112690.0,112680.0,0.21288473]
[1758532511348,0.75007358,112690.0,112680.0,0.21288473]
[1758532511531,1.24571107,112690.0,112680.0,0.21288473]
[1758532512322,1.24567107,112690.0,112680.0,0.21288473]
[1758532512732,0.86935107,112690.0,112680.0,0.21288473]
[1758532512879,1.24563107,112690.0,112680.0,0.21288473]
[1758532513724,1.24563107,112690.0,112680.0,0.25194807]
[1758532513922,1.24563107,112690.0,112680.0,0.21288473]
[1758532516938,1.4231091,112690.0,112680.0,0.21288473]
[1758532517311,1.4231091,112690.0,112680.0,0.21026473]
[1758532518573,0.92747161,112690.0,112680.0,0.21026473]
[1758532518817,1.4231091,112690.0,112680.0,0.21026473]
[1758532519441,1.14951107,112690.0,112680.0,0.21026473]
[1758532519639,1.24547107,112690.0,112680.0,0.21288473]
[1758532519885,0.74983358,112690.0,112680.0,0.21288473]
[1758532520030,1.24547107,112690.0,112680.0,0.21288473]
[1758532521117,0.37371358,112690.0,112680.0,0.21288473]
[1758532521328,0.74975358,112690.0,112680.0,0.21288473]
[1758532521540,1.24539107,112690.0,112680.0,0.21288473]
[1758532521944,0.74975358,112690.0,112680.0,0.21288473]
[1758532522149,0.37371358,112690.0,112680.0,0.21288473]
[1758532522364,0.30418,112690.0,112680.0,0.21288473]
[1758532522581,0.30418,112690.0,112680.0,0.25194807]
[1758532523186,0.30418,112690.0,112680.0,0.21288473]
[1758532523441,0.30418,112690.0,112680.0,0.21188473]
[1758532523668,0.30418,112690.0,112680.0,0.22788473]
[1758532523901,0.30518,112690.0,112680.0,0.22788473]
[1758532524212,0.30522,112690.0,112680.0,0.22688473]
[1758532524806,0.30622,112690.0,112680.0,0.23388473]
[1758532526268,0.30622,112690.0,112680.0,0.24321825]
[1758532526269,0.67774265,112690.0,112680.0,0.24321825]
[1758532526679,0.67774265,112690.0,112680.0,0.23388473]
[1758532527276,0.30622,112690.0,112680.0,0.23388473]
[1758532527481,0.67774265,112690.0,112680.0,0.23388473]
[1758532527842,0.30622,112690.0,112680.0,0.23388473]
[1758532528045,0.67774265,112690.0,112680.0,0.23388473]
[1758532528243,0.30622,112690.0,112680.0,0.27504807]
[1758532528688,0.02574,112690.0,112680.0,0.27504807]
[1758532529104,0.283,112690.0,112680.0,0.27504807]
[1758532530118,0.002,112690.0,112680.0,0.36031774]
[1758532530321,0.283,112690.0,112680.0,0.36031774]
[1758532530949,0.28308,112690.0,112680.0,0.36031774]
[1758532531765,0.28308,112690.0,112680.0,0.3191544]
[1758532532410,0.002,112690.0,112680.0,0.3191544]
[1758532533573,0.002,112690.0,112680.0,0.38620757]
[1758532536551,0.37853265,112690.0,112680.0,0.2755479]
[1758532536752,0.40280265,112690.0,112680.0,0.2734379]
[1758532537276,0.40280265,112690.0,112680.0,0.2959579]
[1758532539218,0.03128,112690.0,112680.0,0.2959579]
[1758532539432,0.03128,112690.0,112680.0,0.20638473]
[1758532539641,0.40280265,112690.0,112680.0,0.20638473]
[1758532539826,0.42949303,112690.0,112680.0,0.20638473]
[1758532540692,0.02870038,112690.0,112680.0,0.22388804]
[1758532541123,0.40022303,112690.0,112680.0,0.22388804]
[1758532542651,0.42749303,112690.0,112680.0,0.22388804]
[1758532544355,0.05597038,112690.0,112680.0,0.22388804]
[1758532544529,0.42749303,112690.0,112680.0,0.22388804]
[1758532546455,0.80425303,112690.0,112680.0,0.22388804]
[1758532547097,0.80429303,112690.0,112680.0,0.22388804]
[1758532547465,0.42749303,112690.0,112680.0,0.22388804]
[1758532547881,0.80421303,112690.0,112680.0,0.22388804]
[1758532548239,0.42749303,112690.0,112680.0,0.22388804]
[1758532548392,0.80421303,112690.0,112680.0,0.22388804]
[1758532548800,0.80421303,112690.0,112680.0,0.20638473]
[1758532550605,0.42749303,112690.0,112680.0,0.20638473]
[1758532550813,0.80409303,112690.0,112680.0,0.20638473]
[1758532551887,0.43257038,112690.0,112680.0,0.20638473]
[1758532552111,0.80409303,112690.0,112680.0,0.20638473]
[1758532552293,0.80409303,112690.0,112680.0,0.24734307]
[1758532554152,0.68070303,112690.0,112680.0,0.24931307]
[1758532554349,0.68070303,112690.0,112680.0,0.27183307]
[1758532554504,0.30918038,112690.0,112680.0,0.27183307]
[1758532554705,0.68070303,112690.0,112680.0,0.27476307]
[1758532554904,0.17635586,112690.0,112680.0,0.27476307]
[1758532555116,0.17836586,112690.0,112680.0,0.27183307]
[1758532556121,0.45884586,112690.0,112680.0,0.27183307]
[1758532556321,0.17836586,112690.0,112680.0,0.27183307]
[1758532556533,0.45683586,112690.0,112680.0,0.27476307]
[1758532557496,0.17635586,112690.0,112680.0,0.27476307]
[1758532557703,0.45679586,112690.0,112680.0,0.27476307]
[1758532558974,0.45671586,112690.0,112680.0,0.27476307]
[1758532559202,0.77792991,112700.0,112690.0,0.17747803]
[1758532559430,1.52573256,112700.0,112690.0,0.22251014]
[1758532559637,1.52573256,112700.0,112690.0,0.24917014]
[1758532559898,1.52785256,112700.0,112690.0,0.24917014]
[1758532560137,0.78004991,112700.0,112690.0,0.24917014]
[1758532560387,1.15628991,112700.0,112690.0,0.24917014]
[1758532560614,0.31853536,112700.0,112690.0,0.26717014]
[1758532561065,0.69005801,112700.0,112690.0,0.26717014]
[1758532561656,0.69217801,112700.0,112690.0,0.26717014]
[1758532562292,0.69217801,112700.0,112690.0,0.26418014]
[1758532562911,0.32065536,112700.0,112690.0,0.26418014]
[1758532563109,0.32065536,112700.0,112690.0,0.26717014]
[1758532563110,0.69217801,112700.0,112690.0,0.26717014]
[1758532563703,0.69005801,112700.0,112690.0,0.26717014]
[1758532564534,0.03825536,112700.0,112690.0,0.26717014]
[1758532564755,0.68993801,112700.0,112690.0,0.26717014]
[1758532566250,0.31841536,112700.0,112690.0,0.26717014]
[1758532566494,0.68993801,112700.0,112690.0,0.26717014]
[1758532566708,0.31841536,112700.0,112690.0,0.26717014]
[1758532566851,0.68985801,112700.0,112690.0,0.26717014]
[1758532567063,0.02869038,112700.0,112690.0,0.26717014]
[1758532567265,0.28208,112700.0,112690.0,0.26717014]
[1758532568241,0.28204,112700.0,112690.0,0.26717014]
[1758532573868,0.002,112700.0,112690.0,0.35243981]
[1758532574143,0.002,112700.0,112690.0,0.40243981]
[1758532575750,0.002,112700.0,112690.0,0.74243981]
[1758532576682,1e-08,112710.0,112700.0,0.22746228]
[1758532576897,1e-08,112710.0,112700.0,0.67744162]
[1758532577121,1e-08,112710.0,112700.0,1.04635162]
[1758532577332,1e-08,112710.0,112700.0,1.04535162]
[1758532577744,1e-08,112710.0,112700.0,1.04531162]
[1758532577961,1e-08,112710.0,112700.0,1.06531162]
[1758532578116,1e-08,112710.0,112700.0,1.11531162]
[1758532579147,1e-08,112710.0,112700.0,1.11431162]
[1758532579947,1e-08,112710.0,112700.0,1.12031162]
[1758532580540,1e-08,112710.0,112700.0,1.14698887]
[1758532582590,1e-08,112710.0,112700.0,1.14678887]
[1758532582792,1e-08,112710.0,112700.0,0.86658887]
[1758532583202,1e-08,112710.0,112700.0,1.14678887]
[1758532585979,1e-08,112710.0,112700.0,1.14662887]
[1758532586181,1e-08,112710.0,112700.0,0.86658887]
[1758532586387,1e-08,112710.0,112700.0,1.14662887]
[1758532595650,1e-08,112710.0,112700.0,1.24019887]
[1758532597272,1e-08,112710.0,112700.0,1.23987887]
[1758532597470,1e-08,112710.0,112700.0,1.33579887]
[1758532598790,0.07126631,112750.0,112740.0,0.17739932]
[1758532599016,0.0713915,112750.0,112740.0,0.58287043]
[1758532599249,0.1007415,112750.0,112740.0,0.58287043]
[1758532600174,0.02947519,112750.0,112740.0,0.58287043]
[1758532600928,0.02947519,112750.0,112740.0,0.58887043]
[1758532601158,0.02947519,112750.0,112740.0,0.66056721]
[1758532603311,0.02947519,112750.0,112740.0,0.38084721]
[1758532603542,0.02947519,112750.0,112740.0,0.66056721]
[1758532605345,0.03777513,112750.0,112740.0,0.66056721]
[1758532605725,0.02947519,112750.0,112740.0,0.66056721]
[1758532606869,0.02947519,112750.0,112740.0,0.38084721]
[1758532607105,0.05690262,112750.0,112740.0,0.2550961]
[1758532608060,0.05690262,112750.0,112740.0,0.2490961]
[1758532608284,0.05690262,112750.0,112740.0,0.2450961]
[1758532608503,0.05690262,112750.0,112740.0,0.2500961]
[1758532609973,0.05690262,112750.0,112740.0,0.2450961]
[1758532610171,0.05690262,112750.0,112740.0,0.32394595]
[1758532610377,0.05690262,112750.0,112740.0,0.32894595]
[1758532611953,0.05690468,112750.0,112740.0,0.32894595]
[1758532614146,0.04860137,112750.0,112740.0,0.32894595]
[1758532614347,0.05690637,112750.0,112740.0,0.32894595]
[1758532614772,0.04860137,112750.0,112740.0,0.32894595]
[1758532616290,0.54361694,112750.0,112740.0,0.32894595]
[1758532616490,0.04860137,112750.0,112740.0,0.32894595]
[1758532619450,0.02947519,112750.0,112740.0,0.32894595]
[1758532620108,0.57378713,112750.0,112740.0,0.18239932]
[1758532620309,0.58209708,112750.0,112740.0,0.18239932]
[1758532620442,0.78615833,112750.0,112740.0,0.18239932]
[1758532621457,0.17739932,112740.0,112730.0,0.17741506]
[1758532621656,1.44325986,112740.0,112730.0,0.17741506]
[1758532621859,0.89026054,112740.0,112730.0,0.17741506]
[1758532622080,1.26582054,112740.0,112730.0,0.2137838]
[1758532622287,0.67488497,112740.0,112730.0,0.2137838]
[1758532622457,1.25751004,112740.0,112730.0,0.2137838]
[1758532622836,0.73674447,112740.0,112730.0,0.2159138]
[1758532622957,1.25755004,112740.0,112730.0,0.2137838]
[1758532623384,1.16163004,112740.0,112730.0,0.2167838]
[1758532623796,1.16163004,112740.0,112730.0,0.2137838]
[1758532624231,1.16163004,112740.0,112730.0,0.2157838]
[1758532624658,0.88695004,112740.0,112730.0,0.2157838]
[1758532624866,1.16663004,112740.0,112730.0,0.2157838]
[1758532625268,1.16663004,112740.0,112730.0,0.17941506]
[1758532626497,1.26255004,112740.0,112730.0,0.17941506]
[1758532626709,1.46662892,112740.0,112730.0,0.002]
[1758532626924,1.46662892,112740.0,112730.0,0.17941506]
[1758532627158,1.2892296,112740.0,112730.0,0.17941506]
[1758532627336,1.27008513,112740.0,112730.0,0.2159838]
[1758532627752,1.17420513,112740.0,112730.0,0.2159838]
[1758532627965,1.27012513,112740.0,112730.0,0.2159838]
[1758532629210,1.44752445,112740.0,112730.0,0.17941506]
[1758532629786,1.27012513,112740.0,112730.0,0.17941506]
[1758532629986,1.27024513,112740.0,112730.0,0.17941506]
[1758532630612,1.44764445,112740.0,112730.0,0.17941506]
[1758532630817,1.44764445,112740.0,112730.0,0.002]
[1758532631014,2.01958534,112740.0,112730.0,0.002]
[1758532631216,2.06037984,112740.0,112730.0,0.002]
[1758532631431,3.0009381,112740.0,112730.0,0.002]
[1758532631746,2.5258281,112740.0,112730.0,0.002]
[1758532631913,2.3486331,112740.0,112730.0,0.002]
[1758532632124,2.0719771,112740.0,112730.0,0.002]
[1758532632332,0.0301519,112710.0,112700.0,0.18633539]
[1758532632535,1.10119401,112710.0,112700.0,0.18633539]
[1758532632701,1.10451401,112710.0,112700.0,0.18633539]
[1758532632905,1.10451401,112710.0,112690.0,0.18635184]
[1758532633180,0.49501557,112700.0,112690.0,0.22688997]
[1758532633323,0.51767557,112700.0,112690.0,0.22688997]
[1758532633523,0.51976066,112700.0,112690.0,0.22688997]
[1758532633704,0.79976066,112700.0,112690.0,0.22892997]
[1758532634363,0.79976066,112700.0,112690.0,0.23092997]
[1758532634757,0.79976066,112700.0,112690.0,0.23397997]
[1758532634970,0.79976066,112700.0,112690.0,0.23697997]
[1758532635416,0.77710066,112700.0,112690.0,0.23697997]
[1758532636053,0.77710066,112700.0,112690.0,0.25948997]
[1758532636256,0.78637765,112700.0,112690.0,0.25948997]
[1758532637502,0.81306684,112700.0,112690.0,0.25948997]
[1758532640692,0.81306684,112700.0,112690.0,0.23392997]
[1758532640906,0.83572684,112700.0,112690.0,0.23192997]
[1758532641597,0.83572684,112700.0,112690.0,0.19139184]
[1758532642483,0.81110684,112700.0,112690.0,0.19648184]
[1758532642716,0.81094684,112700.0,112690.0,0.21899184]
[1758532644539,0.81149907,112700.0,112690.0,0.21899184]
[1758532644743,1.05928311,112700.0,112690.0,0.21899184]
[1758532644978,1.05928311,112700.0,112690.0,0.26011696]
[1758532644979,0.77944311,112700.0,112690.0,0.26011696]
[1758532645186,1.03455392,112700.0,112690.0,0.07376512]
[1758532645384,3.06273988,112700.0,112690.0,0.00504]
[1758532645661,3.17500773,112700.0,112690.0,0.00504]
[1758532645885,3.15313398,112700.0,112690.0,0.00504]
[1758532646102,0.51747803,112690.0,112680.0,0.00589095]
[1758532646321,2.07798837,112690.0,112680.0,0.00589095]
[1758532646542,3.27183436,112690.0,112680.0,0.00589095]
[1758532646772,3.29449436,112690.0,112680.0,0.00589095]
[1758532646993,2.1794666,112690.0,112680.0,0.00589095]
[1758532647770,2.15067508,112690.0,112680.0,0.00589095]
[1758532648185,2.45067508,112690.0,112680.0,0.00589095]
[1758532648386,2.4794666,112690.0,112680.0,0.00589095]
[1758532649018,2.51452304,112690.0,112680.0,0.00589095]
[1758532649366,0.20764568,112680.0,112670.0,0.00024089]
[1758532649553,1.77212453,112680.0,112670.0,0.00024089]
[1758532649762,1.77410453,112680.0,112670.0,0.00024089]
[1758532650045,1.79912453,112680.0,112670.0,0.00024089]
[1758532650464,1.83337981,112680.0,112670.0,0.00024089]
[1758532650688,1.89723031,112680.0,112670.0,0.00024089]
[1758532650891,2.23723031,112680.0,112670.0,0.00024089]
[1758532651309,1.63255305,112660.0,112650.0,0.00024]
[1758532651522,1.95725262,112660.0,112650.0,0.00024]
[1758532651741,1.95923262,112660.0,112650.0,0.00024]
[1758532651954,1.98425262,112660.0,112650.0,0.00024]
[1758532652139,2.39495499,112660.0,112650.0,0.00024]
[1758532652340,2.49091499,112660.0,112650.0,0.00024]
[1758532652560,2.49096195,112660.0,112650.0,0.00024]
[1758532652771,2.49396195,112660.0,112650.0,0.00024]
[1758532653882,2.50096195,112660.0,112650.0,0.00024]
[1758532654275,4.04393897,112660.0,112650.0,0.00024]
[1758532654485,4.00968369,112660.0,112650.0,0.00024]
[1758532654693,3.24892369,112660.0,112650.0,0.00024]
[1758532654901,3.24891591,112660.0,112650.0,0.00024]
[1758532655153,4.00967591,112660.0,112650.0,0.00024]
[1758532655371,3.91363591,112660.0,112650.0,0.00024]
[1758532655588,3.24891591,112660.0,112650.0,0.00024]
[1758532655788,4.00963591,112660.0,112650.0,0.00024]
[1758532656201,2.89460815,112660.0,112650.0,0.00024]
[1758532656441,2.13388815,112660.0,112650.0,0.00024]
[1758532656888,2.89456815,112660.0,112650.0,0.00024]
[1758532657071,2.41456815,112660.0,112650.0,0.00024]
[1758532657271,2.79856815,112660.0,112650.0,0.00024]
[1758532657475,2.89456815,112660.0,112650.0,0.00024]
[1758532658803,2.92882343,112660.0,112650.0,0.00024]
[1758532659035,1.39418039,112660.0,112650.0,0.00024]
[1758532659242,0.5143351,112660.0,112650.0,0.17976105]
[1758532659470,0.8635432,112660.0,112650.0,0.24597676]
[1758532659645,0.46000112,112660.0,112650.0,0.24597676]
[1758532659874,1.20335296,112660.0,112650.0,0.24597676]
[1758532660051,1.19031815,112660.0,112650.0,0.24597676]
[1758532660607,1.18731815,112660.0,112650.0,0.24597676]
[1758532660827,1.18089973,112660.0,112650.0,0.24597676]
[1758532661033,1.18189973,112660.0,112650.0,0.24597676]
[1758532661238,1.18489973,112660.0,112650.0,0.24597676]
[1758532662110,1.52489973,112660.0,112650.0,0.20775105]
[1758532662310,1.70440502,112660.0,112650.0,0.18281105]
[1758532662515,1.72806502,112660.0,112650.0,0.17976105]
[1758532662962,1.72806502,112660.0,112650.0,0.00222]
[1758532663295,1.72806502,112660.0,112650.0,0.17976105]
[1758532663792,2.10003173,112660.0,112650.0,0.00024]
[1758532664005,2.10139173,112660.0,112650.0,0.00024]
[1758532664185,1.72806502,112660.0,112650.0,0.00024]
[1758532664391,1.72806502,112660.0,112650.0,0.17778105]
[1758532667416,1.55053973,112660.0,112650.0,0.17976105]
[1758532667617,1.52687973,112660.0,112650.0,0.17976105]
[1758532668251,1.70440502,112660.0,112650.0,0.17976105]
[1758532668636,1.52687973,112660.0,112650.0,0.17976105]
[1758532669066,1.70440502,112660.0,112650.0,0.17976105]
[1758532669272,1.52489973,112660.0,112650.0,0.18281105]
[1758532669472,0.05808631,112660.0,112650.0,0.24628176]
[1758532669827,0.03138394,112660.0,112650.0,0.24628176]
[1758532670462,0.03138394,112660.0,112650.0,0.53336176]
[1758532670646,0.03038394,112660.0,112650.0,0.31317283]
[1758532670949,0.03038394,112660.0,112650.0,0.60017283]
[1758532671186,0.02738394,112660.0,112650.0,0.6854425]
[1758532671403,1e-08,112660.0,112650.0,0.6854425]
[1758532671642,1e-08,112660.0,112650.0,0.6854025]
[1758532671846,1e-08,112660.0,112650.0,0.7814025]
[1758532672058,0.69822631,112690.0,112680.0,0.17749378]
[1758532672269,0.69822631,112690.0,112680.0,0.21497271]
[1758532672270,0.69827332,112690.0,112680.0,0.21497271]
[1758532672446,0.69827332,112690.0,112680.0,0.24296271]
[1758532673888,4.701e-05,112690.0,112680.0,0.24296271]
[1758532676404,4.701e-05,112690.0,112680.0,0.24496271]
[1758532677627,4.701e-05,112690.0,112680.0,0.24796271]
[1758532681321,4.701e-05,112690.0,112680.0,0.21246378]
[1758532683879,4.701e-05,112690.0,112680.0,0.49914378]
[1758532690939,4.701e-05,112690.0,112680.0,0.21246378]
[1758532691146,4.701e-05,112690.0,112680.0,0.59446378]
[1758532691563,4.701e-05,112690.0,112680.0,0.21246378]
[1758532691786,4.701e-05,112690.0,112680.0,0.63333971]
[1758532692174,4.701e-05,112690.0,112680.0,0.25145971]
[1758532692354,4.701e-05,112690.0,112680.0,0.63337971]
[1758532693545,4.701e-05,112690.0,112680.0,0.34741971]
[1758532693730,4.701e-05,112690.0,112680.0,0.63333971]
[1758532694140,4.701e-05,112690.0,112680.0,0.70071938]
[1758532694662,0.77121579,112710.0,112700.0,0.17746228]
[1758532694868,0.75006579,112710.0,112700.0,0.50075488]
[1758532695072,0.74808579,112710.0,112700.0,0.52839488]
[1758532695738,0.37955282,112710.0,112700.0,0.50389488]
[1758532695938,0.37955282,112710.0,112700.0,0.49871488]
[1758532695939,0.77419579,112710.0,112700.0,0.49871488]
[1758532696141,0.77719579,112710.0,112700.0,0.49871488]
[1758532697176,0.75406579,112710.0,112700.0,0.50071488]
[1758532697762,0.75406579,112710.0,112700.0,0.21295488]
[1758532697964,0.75406579,112710.0,112700.0,0.49867488]
[1758532697965,0.77719579,112710.0,112700.0,0.49867488]
[1758532698176,0.77719579,112710.0,112700.0,0.49847488]
[1758532699311,0.40568282,112710.0,112700.0,0.49847488]
[1758532699546,0.75406579,112710.0,112700.0,0.50047488]
[1758532699689,0.75208579,112710.0,112700.0,0.52811488]
[1758532700102,0.75208579,112710.0,112700.0,0.50365488]
[1758532700308,0.75208579,112710.0,112700.0,0.52795488]
[1758532700873,0.75406579,112710.0,112700.0,0.52795488]
[1758532701092,0.75406579,112710.0,112700.0,0.50031488]
[1758532701315,0.77719579,112710.0,112700.0,0.50031488]
[1758532702139,0.77719579,112710.0,112700.0,0.49831488]
[1758532702897,0.79383969,112710.0,112700.0,0.49831488]
[1758532703125,0.79383969,112710.0,112700.0,0.50031488]
[1758532703566,0.77070969,112710.0,112700.0,0.52477488]
[1758532703909,0.77070969,112710.0,112700.0,0.23941488]
[1758532704091,0.77070969,112710.0,112700.0,0.52457488]
[1758532704301,0.7707128,112710.0,112700.0,0.52457488]
[1758532704695,0.7707128,112710.0,112700.0,0.21495488]
[1758532704962,0.7938428,112710.0,112700.0,0.49995488]
[1758532705172,0.7938428,112710.0,112700.0,0.21495488]
[1758532705382,0.7938428,112710.0,112700.0,0.49991488]
[1758532705625,0.42232983,112710.0,112700.0,0.49991488]
[1758532705833,0.7938428,112710.0,112700.0,0.49991488]
[1758532706629,0.91775087,112710.0,112700.0,0.49991488]
[1758532707400,0.91779476,112710.0,112700.0,0.49991488]
[1758532708026,0.91779476,112710.0,112700.0,0.21495488]
[1758532708205,0.91779476,112710.0,112700.0,0.49967488]
[1758532711321,0.90114775,112710.0,112700.0,0.49967488]
[1758532711707,0.90114775,112710.0,112700.0,0.21495488]
[1758532711944,0.90114775,112710.0,112700.0,0.21295488]
[1758532712172,1.09643731,112710.0,112700.0,0.17746228]
[1758532712396,0.17746228,112700.0,112690.0,0.46191803]
[1758532712638,1.04224208,112700.0,112690.0,0.46205882]
[1758532712822,1.06656208,112700.0,112690.0,0.46205882]
[1758532713433,1.06656208,112700.0,112690.0,0.17761882]
[1758532713642,1.06656208,112700.0,112690.0,0.46205882]
[1758532714245,1.06656208,112700.0,112690.0,0.53112114]
[1758532714550,1.06656208,112700.0,112690.0,0.17761882]
[1758532714753,1.06656208,112700.0,112690.0,0.46193882]
[1758532714958,1.10300728,112700.0,112690.0,0.00014079]
[1758532715171,1.08320999,112700.0,112690.0,0.00014079]
[1758532715399,1.08320532,112700.0,112690.0,0.00014079]
[1758532715606,1.06656208,112700.0,112690.0,0.17761882]
[1758532716011,1.07056208,112700.0,112690.0,0.17761882]
[1758532716239,1.37140513,112700.0,112690.0,0.00014079]
[1758532718902,1.37140513,112700.0,112690.0,0.17761882]
[1758532719099,1.06220513,112700.0,112690.0,0.00014079]
[1758532719455,1.34616513,112700.0,112690.0,0.00014079]
[1758532719865,1.08720513,112700.0,112690.0,0.00014079]
[1758532720066,1.34684513,112700.0,112690.0,0.17959882]
[1758532720281,1.33035711,112700.0,112690.0,0.21794305]